fUST/lending_fUST_20250107
["ID","MTS","AMOUNT","RATE_DAILY","PERIOD"]
[347893262,1736185841607,-500.0,0.00019452,3]
[347893263,1736185841617,-500.0,0.00019452,3]
[347893265,1736185841626,-500.0,0.00019452,3]
[347893267,1736185841636,-500.0,0.00019452,3]
[347893270,1736185841646,-500.0,0.00019452,3]
[347893271,1736185841655,-510.6,0.00019452,3]
[347893274,1736185841664,-500.0,0.00019452,3]
[347893275,1736185841674,-500.0,0.00019452,3]
[347893277,1736185841683,-500.0,0.00019452,3]
[347893279,1736185841693,-500.0,0.00019452,3]
[347893281,1736185841702,-500.0,0.00019452,3]
[347893283,1736185841711,-500.0,0.00019452,3]
[347893285,1736185841722,-500.0,0.00019452,3]
[347893287,1736185841731,-500.0,0.00019452,3]
[347893289,1736185841740,-500.0,0.00019452,3]
[347893291,1736185841749,-500.0,0.00019452,3]
[347893293,1736185841758,-500.0,0.00019452,3]
[347893295,1736185841768,-500.0,0.00019452,3]
[347893297,1736185841777,-500.0,0.00019452,3]
[347893299,1736185841785,-492.61581451,0.00019452,3]
[347893301,1736185841794,-500.0,0.00019452,3]
[347893303,1736185841804,-2579.57,0.00019452,3]
[347893305,1736185841813,-500.0,0.00019452,3]
[347893307,1736185841822,-500.0,0.00019452,3]
[347893309,1736185841831,-500.0,0.00019452,3]
[347893311,1736185841840,-500.0,0.00019452,3]
[347893313,1736185841849,-500.0,0.00019452,3]
[347893315,1736185841859,-500.0,0.00019452,3]
[347893317,1736185841868,-500.0,0.00019452,3]
[347893319,1736185841877,-775.05,0.00019452,3]
[347893321,1736185841886,-500.0,0.00019452,3]
[347893323,1736185841895,-500.0,0.00019452,3]
[347893325,1736185841905,-1000.0,0.00019452,7]
[347893327,1736185841914,-1115.51,0.00019452,3]
[347893329,1736185841924,-500.0,0.00019452,3]
[347893331,1736185841934,-846.28,0.00019452,3]
[347893333,1736185841942,-500.0,0.00019452,3]
[347893335,1736185841951,-1232.83,0.00019452,3]
[347893338,1736185841960,-500.0,0.00019452,3]
[347893340,1736185841979,-500.0,0.00019452,3]
[347893342,1736185841988,-500.0,0.00019452,3]
[347893344,1736185841998,-500.0,0.00019452,3]
[347893346,1736185842007,-500.0,0.00019452,3]
[347893347,1736185842017,-516.34,0.00019452,3]
[347893349,1736185842026,-500.0,0.00019452,3]
[347893351,1736185842036,-7133.35,0.00019452,3]
[347893353,1736185842047,-500.0,0.00019452,3]
[347893355,1736185842057,-500.0,0.00019452,3]
[347893357,1736185842066,-703.72,0.00019452,3]
[347893359,1736185842075,-809.16,0.00019452,3]
[347893361,1736185842084,-500.0,0.00019452,3]
[347893363,1736185842094,-2076.72,0.00019452,3]
[347893366,1736185842103,-633.47980713,0.00019452,3]
[347893368,1736185842112,-500.0,0.00019452,3]
[347893369,1736185842121,-500.0,0.00019452,3]
[347893371,1736185842130,-500.0,0.00019452,3]
[347893373,1736185842140,-653.55,0.00019452,3]
[347893375,1736185842148,-500.0,0.00019452,3]
[347893377,1736185842158,-500.0,0.00019452,3]
[347893379,1736185842167,-612.25442181,0.00019452,3]
[347893381,1736185842176,-1000.0,0.00019454,2]
[347893383,1736185842185,-1000.0,0.00019461,2]
[347893385,1736185842194,-500.0,0.00019473,2]
[347893387,1736185842203,-500.0,0.00019473,2]
[347893389,1736185842212,-500.4929567,0.00019473,2]
[347893391,1736185842225,-500.0,0.00019473,2]
[347893393,1736185842234,-188.51461307,0.00019473,2]
[347893395,1736185842245,-1000.0,0.00019484,2]
[347893397,1736185842257,-160.0,0.00019499,2]
[347893399,1736185842266,-357135.92115941,0.000195,5]
[347893402,1736185842284,-36836.7603361,0.000195,5]
[347893404,1736185842296,-17927.57205427,0.000195,5]
[347893406,1736185842307,-9111.96096439,0.000195,5]
[347893409,1736185842317,-14195.98123874,0.000195,5]
[347893411,1736185842331,-4771.8688094,0.000195,5]
[347893665,1736185845388,-25838.557293,0.000195,5]
[347893666,1736185845539,-8132.383785,0.000195,5]
[347893667,1736185845551,-458.4899999,0.000195,5]
[347893696,1736185845997,-1203.54,0.00019178,2]
[347893698,1736185846007,-536.95,0.00019178,2]
[347893700,1736185846016,-500.0,0.00019178,2]
[347893703,1736185846026,-611.57551988,0.00019452,3]
[347893705,1736185846038,-591.96448012,0.00019452,3]
[347893708,1736185846047,-536.95,0.00019452,3]
[347893710,1736185846057,-4287.1021834,0.000195,5]
[347893713,1736185846070,-9263.11999989,0.000195,5]
[347893716,1736185846090,-2971.09998815,0.000195,5]
[347893717,1736185846101,-26400.10293717,0.000195,5]
[347893719,1736185846112,-500.0,0.000195,5]
[347893835,1736185847363,-13391.457428,0.000195,5]
[347893956,1736185849450,-500.0,0.00019178,2]
[347893958,1736185849459,-16055.308958,0.000195,5]
[347893962,1736185849488,-1709.1451065,0.000195,5]
[347893965,1736185849500,-5075.5,0.000195,5]
[347893967,1736185849515,-7126.88146253,0.000195,5]
[347894010,1736185849911,-500.0,0.00019178,2]
[347894012,1736185849921,-500.0,0.00019178,2]
[347894014,1736185849931,-8795.09875109,0.000195,5]
[347894032,1736185850093,-2159.374974,0.000195,5]
[347894034,1736185850105,-572.70326681,0.000195,5]
[347894036,1736185850116,-1505.79396647,0.000195,5]
[347894039,1736185850127,-7525.19341578,0.000195,5]
[347894041,1736185850139,-14252.17137201,0.000195,5]
[347894290,1736185852665,-67831.9838626,0.000195,5]
[347895063,1736185993452,3475.0,0.0001505,2]
[347895065,1736186418394,173.60775,0.00013973,2]
[347895067,1736186745147,-2173.18419561,0.00017049,2]
[347895068,1736186745168,-1262.83963087,0.00017221,2]
[347895069,1736186745190,-177.20586183,0.00017471,2]
[347895070,1736186745211,-852.0,0.00017569,2]
[347895071,1736186745234,-300.0,0.00017569,2]
[347895072,1736186745255,-3320.44361593,0.0001757,2]
[347895074,1736186846093,-300.0,0.00017569,2]
[347895075,1736186846114,-41270.57451475,0.0001757,2]
[347895076,1736186846135,-2385.02816944,0.00018008,2]
[347895077,1736186846157,-5741.0397808,0.00018108,2]
[347895078,1736186846179,-223.721682,0.00018221,2]
[347895079,1736186846201,-228.4974955,0.000189,2]
[347895080,1736186846225,-7589.04142414,0.000189,2]
[347895081,1736186846248,-493.652,0.00019,2]
[347895082,1736186846279,-7589.04142385,0.00019072,2]
[347895083,1736186846312,-153.78184698,0.00019073,2]
[347895084,1736186846333,-153.78184697,0.00019078,2]
[347895085,1736186846353,-190.02328871,0.00019166,2]
[347895086,1736186846374,-500.4929567,0.00019173,2]
[347895087,1736186846394,-500.0,0.00019173,2]
[347895088,1736186846415,-500.0,0.00019173,2]
[347895089,1736186846442,-500.0,0.00019173,2]
[347895090,1736186846463,-500.0,0.00019173,2]
[347895091,1736186846484,-188.51461307,0.00019173,2]
[347895092,1736186846504,-410.78532785,0.00019173,2]
[347895093,1736186846524,-501.01795844,0.00019173,2]
[347895094,1736186846550,-500.0,0.00019173,2]
[347895095,1736186846570,-649.61214758,0.00019173,2]
[347895096,1736186846598,-500.0,0.00019173,2]
[347895097,1736186846621,-500.0,0.00019173,2]
[347895098,1736186846642,-296.26122413,0.00019173,2]
[347895099,1736186846664,-500.0,0.00019173,2]
[347895100,1736186846689,-500.0,0.00019173,2]
[347895101,1736186846712,-500.0,0.00019173,2]
[347895102,1736186846734,-500.0,0.00019173,2]
[347895103,1736186846758,-500.0,0.00019173,2]
[347895104,1736186846780,-500.0,0.00019173,2]
[347895105,1736186846804,-500.0,0.00019173,2]
[347895106,1736186846827,-500.0,0.00019173,2]
[347895107,1736186846849,-500.0,0.00019173,2]
[347895108,1736186846870,-500.0,0.00019173,2]
[347895109,1736186846893,-200.52605562,0.00019173,2]
[347895110,1736186846916,-500.0,0.00019173,2]
[347895111,1736186846937,-500.0,0.00019173,2]
[347895112,1736186846960,-500.0,0.00019173,2]
[347895113,1736186846983,-500.0,0.00019173,2]
[347895114,1736186847008,-500.0,0.00019173,2]
[347895115,1736186847032,-500.0,0.00019173,2]
[347895116,1736186847055,-351.5908761,0.00019173,2]
[347895117,1736186847076,-500.0,0.00019173,2]
[347895118,1736186847101,-500.0,0.00019173,2]
[347895119,1736186847126,-500.0,0.00019173,2]
[347895120,1736186847148,-326.8936611,0.00019173,2]
[347895121,1736186847170,-500.0,0.00019173,2]
[347895122,1736186847193,-500.0,0.00019173,2]
[347895123,1736186847217,-500.0,0.00019173,2]
[347895124,1736186847240,-500.0,0.00019173,2]
[347895125,1736186847264,-500.0,0.00019173,2]
[347895126,1736186847286,-500.0,0.00019173,2]
[347895127,1736186847311,-500.0,0.00019173,2]
[347895128,1736186847333,-500.0,0.00019173,2]
[347895129,1736186847356,-500.0,0.00019173,2]
[347895130,1736186847379,-500.0,0.00019173,2]
[347895131,1736186847401,-500.0,0.00019173,2]
[347895132,1736186847425,-500.0,0.00019173,2]
[347895133,1736186847447,-500.0,0.00019173,2]
[347895134,1736186847470,-500.0,0.00019173,2]
[347895135,1736186847493,-500.0,0.00019173,2]
[347895136,1736186847516,-500.0,0.00019173,2]
[347895137,1736186847539,-500.0,0.00019173,2]
[347895138,1736186847566,-500.0,0.00019173,2]
[347895139,1736186847594,-500.0,0.00019173,2]
[347895140,1736186847776,-500.0,0.00019173,2]
[347895141,1736186847801,-500.0,0.00019173,2]
[347895142,1736186847824,-500.0,0.00019173,2]
[347895143,1736186847847,-500.0,0.00019173,2]
[347895144,1736186847870,-500.0,0.00019173,2]
[347895145,1736186847893,-500.0,0.00019173,2]
[347895146,1736186847916,-500.0,0.00019173,2]
[347895147,1736186847939,-500.0,0.00019173,2]
[347895148,1736186847961,-216.68277146,0.00019173,2]
[347895149,1736186847983,-500.0,0.00019173,2]
[347895150,1736186848006,-500.0,0.00019173,2]
[347895151,1736186848029,-500.0,0.00019173,2]
[347895152,1736186848052,-500.0,0.00019173,2]
[347895153,1736186848073,-235.968,0.00019177,2]
[347895154,1736186848095,-499.0,0.00019177,2]
[347895155,1736186848117,-382.25290259,0.00019177,2]
[347895156,1736186848138,-500.0,0.00019178,2]
[347895157,1736186848160,-500.0,0.00019178,2]
[347895158,1736186848182,-500.0,0.00019178,2]
[347895159,1736186848203,-500.0,0.00019178,2]
[347895160,1736186848224,-500.0,0.00019178,2]
[347895161,1736186848245,-500.0,0.00019178,2]
[347895162,1736186848266,-501.99684553,0.00019178,2]
[347895163,1736186848287,-500.0,0.00019178,2]
[347895164,1736186848310,-500.0,0.00019178,2]
[347895165,1736186848330,-500.0,0.00019178,2]
[347895166,1736186848350,-500.0,0.00019178,2]
[347895167,1736186848370,-500.0,0.00019178,2]
[347895168,1736186848390,-500.0,0.00019178,2]
[347895169,1736186848411,-500.0,0.00019178,2]
[347895170,1736186848430,-500.0,0.00019178,2]
[347895171,1736186848451,-500.0,0.00019178,2]
[347895172,1736186848471,-500.0,0.00019178,2]
[347895173,1736186848492,-501.26134387,0.00019178,2]
[347895174,1736186848513,-1053.55,0.00019178,2]
[347895175,1736186848534,-500.77606557,0.00019178,2]
[347895176,1736186848559,-500.0,0.00019178,2]
[347895177,1736186848581,-500.0,0.00019178,2]
[347895178,1736186848603,-500.0,0.00019178,2]
[347895179,1736186848626,-500.0,0.00019178,2]
[347895180,1736186848648,-500.0,0.00019178,2]
[347895181,1736186848668,-500.0,0.00019178,2]
[347895182,1736186848688,-500.0,0.00019178,2]
[347895183,1736186848710,-207.60180917,0.00019178,2]
[347895184,1736186848731,-500.0,0.00019178,2]
[347895185,1736186848751,-500.0,0.00019178,2]
[347895186,1736186848771,-500.0,0.00019178,2]
[347895187,1736186848792,-500.0,0.00019178,2]
[347895188,1736186848815,-500.0,0.00019178,2]
[347895189,1736186848836,-500.0,0.00019178,2]
[347895190,1736186848857,-500.0,0.00019178,2]
[347895191,1736186848878,-500.0,0.00019178,2]
[347895192,1736186848899,-500.0,0.00019178,2]
[347895193,1736186848920,-500.0,0.00019178,2]
[347895194,1736186848940,-500.0,0.00019178,2]
[347895195,1736186848960,-500.0,0.00019178,2]
[347895196,1736186848982,-500.0,0.00019178,2]
[347895197,1736186849002,-456.38073074,0.00019178,2]
[347895198,1736186849023,-500.0,0.00019178,2]
[347895199,1736186849044,-500.0,0.00019178,2]
[347895200,1736186849066,-500.44757115,0.00019178,2]
[347895201,1736186849087,-601.96429731,0.00019178,2]
[347895202,1736186849108,-500.0,0.00019178,2]
[347895203,1736186849128,-501.125226,0.00019178,2]
[347895204,1736186849150,-500.41540438,0.00019178,2]
[347895205,1736186849171,-500.0,0.00019178,2]
[347895206,1736186849192,-500.0,0.00019178,2]
[347895207,1736186849213,-500.0,0.00019178,2]
[347895208,1736186849234,-500.0,0.00019178,2]
[347895209,1736186849254,-500.0,0.00019178,2]
[347895210,1736186849276,-500.0,0.00019178,2]
[347895211,1736186849298,-500.0,0.00019178,2]
[347895212,1736186849318,-500.0,0.00019178,2]
[347895213,1736186849339,-500.0,0.00019178,2]
[347895214,1736186849360,-500.0,0.00019178,2]
[347895215,1736186849380,-500.0,0.00019178,2]
[347895216,1736186849401,-500.0,0.00019178,2]
[347895217,1736186849422,-500.0,0.00019178,2]
[347895218,1736186849443,-500.0,0.00019178,2]
[347895219,1736186849463,-500.0,0.00019178,2]
[347895220,1736186849484,-500.0,0.00019178,2]
[347895221,1736186849505,-500.0,0.00019178,2]
[347895222,1736186849526,-500.0,0.00019178,2]
[347895223,1736186849549,-500.0,0.00019178,2]
[347895224,1736186849569,-451.90097813,0.00019178,2]
[347895225,1736186849591,-428.44822366,0.00019178,2]
[347895226,1736186849613,-514.94251189,0.00019178,2]
[347895227,1736186849637,-500.0,0.00019178,2]
[347895228,1736186849658,-500.0,0.00019178,2]
[347895229,1736186849679,-500.0,0.00019178,2]
[347895230,1736186849700,-500.0,0.00019178,2]
[347895231,1736186849722,-223.37321046,0.00019178,2]
[347895232,1736186849742,-437.97447862,0.00019178,2]
[347895233,1736186849764,-500.0,0.00019178,2]
[347895234,1736186849785,-500.0,0.00019178,2]
[347895235,1736186849808,-500.45758209,0.00019178,2]
[347895236,1736186849829,-613.46842821,0.00019178,2]
[347895237,1736186849850,-500.0,0.00019178,2]
[347895238,1736186849871,-500.0,0.00019178,2]
[347895239,1736186849894,-500.0,0.00019178,2]
[347895240,1736186849916,-500.0,0.00019178,2]
[347895241,1736186849937,-500.0,0.00019178,2]
[347895242,1736186849959,-500.0,0.00019178,2]
[347895243,1736186849981,-500.0,0.00019178,2]
[347895244,1736186850003,-500.0,0.00019178,2]
[347895245,1736186850024,-512.588983,0.00019178,2]
[347895246,1736186850049,-500.0,0.00019178,2]
[347895247,1736186850070,-500.0,0.00019178,2]
[347895248,1736186850092,-60.31619328,0.00019178,2]
[347895249,1736186854127,-439.68380672,0.00019178,2]
[347895250,1736186854149,-419.41950363,0.00019178,2]
[347895264,1736187024383,5812.6,0.0001505,2]
[347895299,1736187032735,-223.7216828,0.0001832,2]
[347895301,1736187032750,-202.33166367,0.000189,2]
[347895303,1736187032759,-427.70621358,0.00019173,2]
[347895305,1736187032771,-72.29378642,0.00019173,2]
[347895307,1736187032780,-300.0,0.00019176,2]
[347895309,1736187032790,-640.0,0.00019176,2]
[347895311,1736187032799,-500.0,0.00019177,2]
[347895313,1736187032808,-500.0,0.00019177,2]
[347895315,1736187032818,-261.28787512,0.00019177,2]
[347895317,1736187032827,-314.09929568,0.00019177,2]
[347895319,1736187032836,-500.0,0.00019177,2]
[347895321,1736187032846,-466.72511729,0.00019177,2]
[347895323,1736187032855,-371.66827715,0.00019177,2]
[347895325,1736187032864,-500.0,0.00019178,2]
[347895327,1736187032873,-500.0,0.00019178,2]
[347895329,1736187032882,-500.47916774,0.00019178,2]
[347895331,1736187032892,-264.33886058,0.00019178,2]
[347895333,1736187032902,-500.51318344,0.00019178,2]
[347895334,1736187032912,-500.0,0.00019178,2]
[347895335,1736187032921,-500.0,0.00019178,2]
[347895336,1736187032931,-500.38940478,0.00019178,2]
[347895338,1736187032941,-500.0,0.00019178,2]
[347895340,1736187032951,-500.0,0.00019178,2]
[347895342,1736187032960,-500.0,0.00019178,2]
[347895344,1736187032971,-500.0,0.00019178,2]
[347895346,1736187032985,-500.0,0.00019178,2]
[347895348,1736187032995,-500.0,0.00019178,2]
[347895351,1736187033005,-500.0,0.00019178,2]
[347895352,1736187033014,-500.0,0.00019178,2]
[347895355,1736187033026,-500.0,0.00019178,2]
[347895356,1736187033036,-500.0,0.00019178,2]
[347895358,1736187033046,-500.0,0.00019178,2]
[347895360,1736187033056,-500.0,0.00019178,2]
[347895362,1736187033066,-500.0,0.00019178,2]
[347895364,1736187033076,-500.0,0.00019178,2]
[347895366,1736187033086,-500.0,0.00019178,2]
[347895368,1736187033095,-501.70098251,0.00019178,2]
[347895370,1736187033105,-384.99847706,0.00019178,2]
[347895373,1736187033123,-115.00152294,0.00019178,2]
[347895375,1736187033132,-500.0,0.00019178,2]
[347895377,1736187033141,-500.0,0.00019178,2]
[347895379,1736187033150,-500.0,0.00019178,2]
[347895381,1736187033160,-500.0,0.00019178,2]
[347895383,1736187033169,-500.0,0.00019178,2]
[347895385,1736187033179,-500.0,0.00019178,2]
[347895387,1736187033190,-500.0,0.00019178,2]
[347895389,1736187033201,-500.0,0.00019178,2]
[347895391,1736187033211,-500.0,0.00019178,2]
[347895393,1736187033224,-500.0,0.00019178,2]
[347895395,1736187033234,-500.0,0.00019178,2]
[347895397,1736187033244,-500.0,0.00019178,2]
[347895399,1736187033254,-500.0,0.00019178,2]
[347895401,1736187033264,-500.0,0.00019178,2]
[347895403,1736187033274,-500.0,0.00019178,2]
[347895405,1736187033285,-547.75902297,0.00019178,2]
[347895407,1736187033295,-500.0,0.00019178,2]
[347895409,1736187033305,-500.50269835,0.00019178,2]
[347895411,1736187033314,-500.0,0.00019178,2]
[347895413,1736187033325,-500.0,0.00019178,2]
[347895415,1736187033334,-500.0,0.00019178,2]
[347895417,1736187033344,-322.95414208,0.00019178,2]
[347895419,1736187033354,-500.0,0.00019178,2]
[347895421,1736187033364,-500.0,0.00019178,2]
[347895423,1736187033374,-500.0,0.00019178,2]
[347895425,1736187033384,-500.63032812,0.00019178,2]
[347895427,1736187033393,-500.0,0.00019178,2]
[347895429,1736187033403,-500.0,0.00019178,2]
[347895431,1736187033412,-500.0,0.00019178,2]
[347895433,1736187033422,-500.0,0.00019178,2]
[347895435,1736187033432,-500.0,0.00019178,2]
[347895437,1736187033442,-410.96041141,0.00019178,2]
[347895440,1736187033455,-89.03958859,0.00019178,2]
[347895442,1736187033466,-500.0,0.00019178,2]
[347895444,1736187033479,-500.0,0.00019178,2]
[347895446,1736187033489,-500.0,0.00019178,2]
[347895448,1736187033498,-500.0,0.00019178,2]
[347895450,1736187033507,-500.0,0.00019178,2]
[347895452,1736187033517,-500.0,0.00019178,2]
[347895454,1736187033526,-500.0,0.00019178,2]
[347895456,1736187033535,-500.0,0.00019178,2]
[347895458,1736187033545,-500.0,0.00019178,2]
[347895460,1736187033554,-500.0,0.00019178,2]
[347895462,1736187033564,-500.0,0.00019178,2]
[347895464,1736187033573,-300.83155344,0.00019178,2]
[347895466,1736187033582,-500.0,0.00019178,2]
[347895468,1736187033592,-500.0,0.00019178,2]
[347895470,1736187033603,-500.0,0.00019178,2]
[347895472,1736187033614,-500.0,0.00019178,2]
[347895474,1736187033623,-500.0,0.00019178,2]
[347895476,1736187033633,-500.0,0.00019178,2]
[347895478,1736187033643,-500.0,0.00019178,2]
[347895480,1736187033652,-500.0,0.00019178,2]
[347895482,1736187033662,-152.03393793,0.00019178,2]
[347895484,1736187033672,-500.0,0.00019178,2]
[347895486,1736187033684,-500.0,0.00019178,2]
[347895488,1736187033694,-500.0,0.00019178,2]
[347895490,1736187033704,-500.0,0.00019178,2]
[347895492,1736187033714,-500.0,0.00019178,2]
[347895494,1736187033726,-500.0,0.00019178,2]
[347895496,1736187033735,-500.0,0.00019178,2]
[347895498,1736187033745,-500.0,0.00019178,2]
[347895500,1736187033754,-500.0,0.00019178,2]
[347895502,1736187033764,-500.0,0.00019178,2]
[347895504,1736187033774,-500.0,0.00019178,2]
[347895506,1736187033783,-554.58,0.00019178,2]
[347895508,1736187033794,-500.0,0.00019178,2]
[347895510,1736187033804,-500.0,0.00019178,2]
[347895512,1736187033814,-500.0,0.00019178,2]
[347895514,1736187033823,-500.0,0.00019178,2]
[347895516,1736187033833,-4508.48,0.00019178,2]
[347895518,1736187033843,-500.0,0.00019178,2]
[347895520,1736187033853,-500.0,0.00019178,2]
[347895522,1736187033863,-500.0,0.00019178,2]
[347895524,1736187033873,-500.0,0.00019178,2]
[347895526,1736187033883,-500.0,0.00019178,2]
[347895528,1736187033893,-500.0,0.00019178,2]
[347895530,1736187033903,-500.0,0.00019178,2]
[347895532,1736187033913,-501.95958637,0.00019178,2]
[347895534,1736187033923,-500.0,0.00019178,2]
[347895536,1736187033933,-500.0,0.00019178,2]
[347895538,1736187033943,-500.0,0.00019178,2]
[347895540,1736187033952,-500.0,0.00019178,2]
[347895542,1736187033962,-342.86373753,0.00019178,2]
[347895544,1736187033972,-598.05,0.00019178,2]
[347895546,1736187033982,-500.0,0.00019178,2]
[347895548,1736187033992,-500.0,0.00019178,2]
[347895550,1736187034002,-500.0,0.00019178,2]
[347895552,1736187034011,-500.0,0.00019178,2]
[347895554,1736187034021,-500.0,0.00019178,2]
[347895556,1736187034030,-500.0,0.00019178,2]
[347895558,1736187034040,-500.0,0.00019178,2]
[347895560,1736187034049,-500.0,0.00019178,2]
[347895562,1736187034059,-564.33,0.00019178,2]
[347895564,1736187034069,-500.0,0.00019178,2]
[347895566,1736187034079,-500.35954024,0.00019178,2]
[347895569,1736187034089,-500.0,0.00019178,2]
[347895571,1736187034098,-500.0,0.00019178,2]
[347895573,1736187034108,-500.0,0.00019178,2]
[347895575,1736187034117,-500.0,0.00019178,2]
[347895576,1736187034127,-500.0,0.00019178,2]
[347895578,1736187034136,-500.0,0.00019178,2]
[347895581,1736187034146,-1222.01,0.00019178,2]
[347895583,1736187034156,-500.0,0.00019178,2]
[347895585,1736187034165,-500.0,0.00019178,2]
[347895586,1736187034175,-500.0,0.00019178,2]
[347895588,1736187034184,-500.0,0.00019178,2]
[347895591,1736187034194,-500.0,0.00019178,2]
[347895592,1736187034203,-285.62038855,0.00019178,2]
[347895594,1736187034212,-502.11724538,0.00019178,2]
[347895597,1736187034225,-500.0,0.00019178,2]
[347895598,1736187034234,-502.21309954,0.00019178,2]
[347895600,1736187034245,-594.12,0.00019178,2]
[347895603,1736187034255,-500.0,0.00019178,2]
[347895604,1736187034265,-500.0,0.00019178,2]
[347895607,1736187034275,-500.0,0.00019178,2]
[347895609,1736187034285,-500.0,0.00019178,2]
[347895611,1736187034294,-500.0,0.00019178,2]
[347895613,1736187034304,-500.0,0.00019178,2]
[347895615,1736187034313,-500.0,0.00019178,2]
[347895617,1736187034323,-500.0,0.00019178,2]
[347895619,1736187034332,-500.0,0.00019178,2]
[347895621,1736187034342,-500.0,0.00019178,2]
[347895623,1736187034351,-500.0,0.00019178,2]
[347895625,1736187034360,-500.0,0.00019178,2]
[347895627,1736187034369,-500.0,0.00019178,2]
[347895629,1736187034379,-500.0,0.00019178,2]
[347895631,1736187034388,-500.0,0.00019178,2]
[347895633,1736187034397,-500.8161826,0.00019178,2]
[347895635,1736187034407,-500.0,0.00019178,2]
[347895637,1736187034416,-503.65567999,0.00019178,2]
[347895638,1736187034425,-500.0,0.00019178,2]
[347895639,1736187034435,-500.0,0.00019178,2]
[347895640,1736187034444,-564.12943436,0.00019178,2]
[347895641,1736187034454,-500.0,0.00019178,2]
[347895642,1736187034463,-500.0,0.00019178,2]
[347895643,1736187034475,-571.03,0.00019178,2]
[347895644,1736187034484,-500.0,0.00019178,2]
[347895645,1736187034494,-500.0,0.00019178,2]
[347895646,1736187034504,-500.0,0.00019178,2]
[347895647,1736187034513,-500.0,0.00019178,2]
[347895648,1736187034523,-500.0,0.00019178,2]
[347895649,1736187034532,-500.0,0.00019178,2]
[347895650,1736187034541,-500.0,0.00019178,2]
[347895651,1736187034551,-500.0,0.00019178,2]
[347895652,1736187034560,-500.0,0.00019178,2]
[347895653,1736187034569,-500.0,0.00019178,2]
[347895654,1736187034580,-500.0,0.00019178,2]
[347895655,1736187034589,-500.0,0.00019178,2]
[347895656,1736187034599,-500.0,0.00019178,2]
[347895657,1736187034612,-500.0,0.00019178,2]
[347895658,1736187034622,-7361.82,0.00019178,2]
[347895660,1736187034631,-421.99400117,0.00019178,2]
[347895662,1736187034643,-500.0,0.00019178,2]
[347895664,1736187034652,-500.0,0.00019178,2]
[347895666,1736187034663,-3206.35,0.00019178,2]
[347895668,1736187034673,-722.58,0.00019178,2]
[347895670,1736187034686,-500.0,0.00019178,2]
[347895672,1736187034695,-500.0,0.00019178,2]
[347895674,1736187034705,-387.42933235,0.00019178,2]
[347895676,1736187034714,-500.0,0.00019178,2]
[347895678,1736187034724,-701.32,0.00019178,2]
[347895680,1736187034733,-667.56,0.00019178,2]
[347895682,1736187034743,-500.0,0.00019178,2]
[347895684,1736187034753,-500.0,0.00019178,2]
[347895686,1736187034762,-500.0,0.00019178,2]
[347895688,1736187034771,-500.0,0.00019178,2]
[347895690,1736187034780,-500.0,0.00019178,2]
[347895692,1736187034789,-500.0,0.00019178,2]
[347895694,1736187034798,-500.0,0.00019178,2]
[347895696,1736187034808,-500.0,0.00019178,2]